bitfinex/quotes_ETHUSD_20240710
["timestamp","ask_amount","ask_price","bid_price","bid_amount"]
[1720609544245,0.34125,3108.2,3107.4,1.075]
[1720609544389,3.34125,3108.2,3107.8,0.09593734]
[1720609544591,3.34125,3108.2,3107.4,1.075]
[1720609544786,3.34125,3108.2,3107.9,0.09593734]
[1720609545058,3.34125,3108.2,3107.6,1.075]
[1720609545447,3.34125,3108.2,3108.0,0.09593734]
[1720609545605,3.34125,3108.2,3107.6,1.075]
[1720609546018,3.34125,3108.2,3107.7,0.09593734]
[1720609546354,3.0,3108.2,3107.7,0.09593734]
[1720609546656,2.3375,3108.3,3107.7,0.09593734]
[1720609550140,1.075,3108.2,3107.7,0.09593734]
[1720609550322,4.075,3108.2,3107.7,0.09593734]
[1720609550543,0.64125,3108.1,3107.3,1.075]
[1720609550861,0.64125,3108.1,3107.0,2.39686432]
[1720609550862,0.64125,3108.1,3107.1,1.075]
[1720609551617,0.64125,3108.1,3107.2,0.09625309]
[1720609553132,1.075,3107.8,3107.2,0.09625309]
[1720609553349,1.075,3107.8,3107.0,2.39686432]
[1720609553813,1.075,3107.6,3107.0,2.39686432]
[1720609554013,1.075,3107.4,3107.1,0.09633206]
[1720609554227,1.075,3107.4,3107.0,2.39686432]
[1720609554666,1.075,3107.4,3107.1,0.09633206]
[1720609555422,1.075,3107.4,3106.4,1.075]
[1720609555636,1.075,3107.4,3106.5,0.09633206]
[1720609556463,1.075,3107.4,3106.5,0.45486527]
[1720609556666,1.075,3107.4,3106.6,1.075]
[1720609556813,0.34932,3107.5,3106.6,1.075]
[1720609557019,3.0,3107.6,3106.8,1.075]
[1720609557220,2.4182,3107.7,3107.0,1.075]
[1720609557670,2.4182,3107.7,3107.1,0.09633206]
[1720609558468,2.8212,3108.2,3107.1,0.09633206]
[1720609558621,2.499,3108.2,3107.2,0.35330321]
[1720609559341,2.499,3108.2,3107.3,0.16069154]
[1720609559542,2.499,3108.2,3107.3,0.09633206]
[1720609560279,2.49808777,3108.2,3107.3,0.09633206]
[1720609562447,2.49808777,3108.2,3107.0,2.3617]
[1720609562648,0.24980878,3108.1,3107.0,2.3617]
[1720609562879,0.24980878,3108.1,3107.1,0.09641372]
[1720609563085,3.0,3108.1,3107.1,0.09641372]
[1720609563267,2.49808777,3108.2,3107.1,0.16077855]
[1720609563593,3.0,3108.4,3107.1,0.16077855]
[1720609563759,5.3943,3108.5,3107.1,0.16077855]
[1720609563964,5.3943,3108.5,3107.2,0.25224785]
[1720609564484,5.3943,3108.5,3107.3,0.09645185]
[1720609566294,2.2716,3108.4,3107.3,0.09645185]
[1720609566502,0.55,3108.3,3107.3,0.09645185]
[1720609566715,0.28216,3108.2,3107.0,2.3617]
[1720609567063,0.28216,3108.2,3106.6,2.4273]
[1720609567064,2.414,3108.1,3106.6,2.4273]
[1720609567262,2.414,3108.0,3106.6,2.4273]
[1720609567803,5.414,3108.0,3106.7,0.09645185]
[1720609567989,2.414,3108.0,3106.7,0.09645185]
[1720609568305,0.5414,3107.9,3106.8,0.25881229]
[1720609568513,3.5414,3107.9,3106.8,0.25881229]
[1720609569506,3.0,3107.9,3106.8,0.25881229]
[1720609569810,2.414,3108.0,3106.9,0.09645185]
[1720609571096,2.414,3108.0,3106.8,0.25881229]
[1720609571711,2.414,3108.0,3106.9,0.09645185]
[1720609572012,2.414,3108.0,3106.6,2.4273]
[1720609572181,2.2622,3107.8,3106.6,2.4273]
[1720609572386,5.2622,3107.8,3106.7,0.09645185]
[1720609572625,3.0,3107.7,3106.7,0.09645185]
[1720609572772,2.2622,3107.8,3106.7,0.09645185]
[1720609577874,2.2622,3107.8,3106.6,2.4273]
[1720609578180,0.22622,3107.7,3106.6,2.4273]
[1720609578397,0.22622,3107.7,3106.7,0.09655808]
[1720609579398,2.2622,3107.8,3106.7,0.09655808]
[1720609579814,2.2622,3107.8,3106.7,0.16092857]
[1720609579985,2.2622,3107.8,3106.7,0.09655808]
[1720609582082,0.55,3107.7,3106.7,0.09655808]
[1720609582289,3.55,3107.7,3106.7,0.09655808]
[1720609582593,0.58122,3107.6,3106.7,0.09655808]
[1720609588532,2.389,3107.5,3106.7,0.09655808]
[1720609588699,5.389,3107.5,3106.2,2.3243]
[1720609589103,5.389,3107.5,3106.3,0.09679779]
[1720609589337,0.597022,3107.4,3106.3,0.09679779]
[1720609589644,3.597022,3107.4,3106.4,0.09679779]
[1720609589990,3.597022,3107.4,3106.2,2.3243]
[1720609590192,3.597022,3107.4,3106.5,0.09679779]
[1720609590413,3.597022,3107.4,3106.2,2.3243]
[1720609590646,0.5986022,3107.3,3106.2,2.3243]
[1720609590812,0.5986022,3107.3,3106.3,0.09679779]
[1720609592032,2.4168,3107.2,3106.3,0.09679779]
[1720609592335,5.4168,3107.2,3106.3,0.09679779]
[1720609592499,5.4168,3107.2,3106.2,2.3243]
[1720609592692,0.60154022,3107.1,3106.2,2.3243]
[1720609592896,3.60154022,3107.1,3106.3,0.09679779]
[1720609597017,2.3982,3107.0,3105.5,2.2789]
[1720609597328,5.3982,3107.0,3105.5,2.2789]
[1720609597530,5.3982,3107.0,3105.7,2.2789]
[1720609597750,0.59997402,3106.9,3105.9,2.2789]
[1720609597922,3.59997402,3106.9,3105.9,2.2789]
[1720609598253,3.59997402,3106.9,3106.0,0.09708387]
[1720609599364,3.0,3106.9,3106.1,2.3451]
[1720609599554,5.4112,3107.4,3106.1,2.4094837]
[1720609599871,0.55335202,3107.3,3106.3,2.4886]
[1720609600164,3.0,3107.3,3106.5,2.4886]
[1720609600313,7.46,3107.5,3106.7,2.4886]
[1720609600924,7.46,3107.5,3106.8,0.09706752]
[1720609601411,7.46,3107.5,3106.7,2.4886]
[1720609601617,7.46,3107.5,3106.8,0.27438975]
[1720609601951,7.46,3107.5,3106.8,0.37145727]
[1720609602157,3.0,3107.4,3106.8,0.27438975]
[1720609604263,3.0,3107.4,3106.7,2.4886]
[1720609604433,3.0,3107.4,3106.9,0.09681685]
[1720609604632,3.0,3107.4,3106.7,2.4886]
[1720609605051,3.0,3107.4,3106.8,0.09681685]
[1720609605521,3.0,3107.4,3106.7,2.4886]
[1720609605960,3.0,3107.4,3106.8,0.09681685]
[1720609606260,3.0,3107.4,3106.7,2.4886]
[1720609606464,3.0,3107.4,3106.9,0.09682503]
[1720609606620,3.0,3107.4,3106.7,2.4886]
[1720609606965,3.0,3107.4,3107.0,0.09682503]
[1720609607123,4.28332,3107.4,3106.7,2.4886]
[1720609607321,3.0,3107.4,3106.7,2.4886]
[1720609607534,2.3732,3107.5,3106.8,0.09682503]
[1720609607913,2.3732,3107.5,3106.7,2.4886]
[1720609609463,3.0,3107.7,3106.7,2.4886]
[1720609609618,0.55323012,3107.6,3106.7,2.4886]
[1720609609959,1.89618906,3107.6,3106.7,2.4886]
[1720609610168,1.34295894,3107.6,3106.7,2.4886]
[1720609612667,3.0,3107.7,3106.8,2.4173]
[1720609612885,7.46,3107.8,3106.8,2.4173]
[1720609612886,7.46,3107.8,3106.8,2.51413048]
[1720609614359,3.0,3107.7,3106.9,0.06436238]
[1720609614537,3.0,3107.7,3107.0,2.4191]
[1720609614855,3.0,3107.7,3106.9,0.06436238]
[1720609614856,3.0,3107.7,3107.2,2.4191]
[1720609615478,3.0,3107.7,3107.3,0.09680323]
[1720609615684,3.0,3107.7,3107.2,2.4191]
[1720609615982,3.0,3107.7,3107.4,0.09680323]
[1720609616185,3.0,3107.7,3107.2,2.4191]
[1720609616341,3.0,3107.7,3107.3,0.36354785]
[1720609616784,3.0,3107.7,3107.3,0.26674462]
[1720609617139,7.46,3108.5,3107.4,2.3988]
[1720609617365,0.16172956,3108.6,3107.5,0.06435633]
[1720609617572,0.55281527,3108.6,3107.6,2.46315048]
[1720609617892,7.46,3108.9,3107.8,2.3988]
[1720609618185,7.46,3108.9,3107.9,0.16084544]
[1720609619163,7.46,3109.3,3108.0,2.3988]
[1720609619469,7.46,3109.7,3108.2,2.2518]
[1720609619670,8.71989312,3109.7,3108.3,0.55414453]
[1720609619887,8.71989312,3109.7,3108.3,0.6504521]
[1720609620871,8.71989312,3109.7,3108.4,2.2518]
[1720609621486,0.15594879,3109.9,3108.6,2.3158]
[1720609621663,7.46,3110.1,3108.7,0.06432132]
[1720609622014,2.4845,3110.2,3108.8,0.09630757]
[1720609622182,2.4845,3110.2,3108.8,0.1606289]
[1720609622382,0.24845,3110.1,3108.8,0.40827179]
[1720609622569,0.24845,3110.1,3108.8,0.34395046]
[1720609622770,5.83045,3110.1,3108.8,0.09630757]
[1720609622970,3.26831753,3110.0,3108.2,2.2663]
[1720609623175,3.55238635,3109.9,3108.3,0.09610891]
[1720609623401,3.55238635,3109.9,3108.2,2.2663]
[1720609623402,3.39893118,3109.9,3108.2,2.2663]
[1720609623698,3.39893118,3109.9,3108.3,0.09616061]
[1720609623866,0.57159312,3109.8,3108.4,0.24267979]
[1720609624394,0.57159312,3109.8,3108.5,0.09616061]
[1720609624808,3.0,3109.9,3108.7,2.3993]
[1720609624964,0.15700401,3110.2,3108.8,0.064322]
[1720609625168,0.3226,3110.3,3108.8,0.064322]
[1720609625169,2.3272,3110.4,3108.9,0.09619054]
[1720609625389,2.3272,3110.4,3108.8,0.064322]
[1720609625701,2.48432822,3110.4,3108.9,0.09619054]
[1720609625906,0.99443282,3110.3,3108.9,0.35217179]
[1720609626080,0.99443282,3110.3,3109.0,0.0643227]
[1720609626991,3.99443282,3110.3,3109.0,0.0643227]
[1720609627367,3.99443282,3110.3,3109.1,2.4322]
[1720609629413,7.7826,3110.5,3108.9,0.25598125]
[1720609629414,7.46,3110.5,3109.3,2.2502]
[1720609629581,7.46,3110.5,3109.7,2.2502]
[1720609629786,7.46,3110.9,3109.8,0.09559451]
[1720609629989,0.76197866,3110.8,3109.7,2.31450812]
[1720609630325,0.76197866,3110.8,3109.8,0.09559451]
[1720609630811,0.76197866,3110.8,3109.7,2.31450812]
[1720609630812,0.76197866,3110.8,3109.7,2.2502]
[1720609630982,0.76197866,3110.8,3109.8,0.09559451]
[1720609631312,3.76197866,3110.8,3109.7,2.2502]
[1720609631467,1.12219787,3110.7,3109.7,2.2502]
[1720609631670,1.12219787,3110.7,3109.8,0.09519883]
[1720609631989,1.12219787,3110.7,3109.7,2.2502]
[1720609632194,1.12219787,3110.7,3109.8,0.09514989]
[1720609632386,1.12219787,3110.7,3109.7,2.2502]
[1720609632587,1.12219787,3110.7,3109.8,0.09514989]
[1720609632787,1.12219787,3110.7,3109.7,2.47522]
[1720609633080,1.12219787,3110.7,3109.8,0.09514989]
[1720609633597,1.12219787,3110.7,3109.7,2.47522]
[1720609633804,1.12219787,3110.7,3109.8,0.09514989]
[1720609633974,1.12219787,3110.7,3109.8,0.25703699]
[1720609634525,3.76197866,3110.8,3109.8,0.25703699]
[1720609636329,0.50445987,3110.6,3109.8,0.25703699]
[1720609636827,0.50445987,3110.6,3109.9,0.09514989]
[1720609637225,0.50445987,3110.6,3109.7,2.2502]
[1720609637402,0.50445987,3110.6,3109.8,0.09514989]
[1720609638206,0.50445987,3110.6,3109.8,0.32968488]
[1720609639430,0.50445987,3110.6,3109.8,0.09514989]
[1720609641711,2.334,3110.5,3109.8,0.09514989]
[1720609641911,0.8726,3110.4,3108.9,2.4464]
[1720609642129,3.8726,3110.4,3108.9,2.4464]
[1720609642328,3.8726,3110.4,3109.0,0.08875219]
[1720609642634,1.20146,3110.3,3109.0,0.08875219]
[1720609642848,0.55,3110.2,3109.0,0.08875219]
[1720609643543,4.20146,3110.3,3108.9,2.4464]
[1720609643712,4.20146,3110.3,3108.4,2.582]
[1720609643713,3.0,3110.4,3109.2,2.582]
[1720609644043,0.50445987,3110.6,3109.3,2.41429087]
[1720609644833,0.66376095,3110.6,3109.3,2.41429087]
[1720609645014,0.55,3110.5,3109.3,2.41429087]
[1720609647227,0.55,3110.5,3109.3,2.3254]
[1720609647624,0.06378967,3110.4,3109.3,2.3254]
[1720609648016,0.55,3110.3,3109.3,2.3254]
[1720609648217,0.06378967,3110.2,3109.3,2.3254]
[1720609648428,0.06378967,3110.2,3109.4,0.08887183]
[1720609657623,0.29847897,3110.1,3109.4,0.08887183]
[1720609657859,0.29847897,3110.1,3109.3,2.3254]
[1720609661241,0.29847897,3110.1,3108.4,2.4777]
[1720609661543,0.55,3110.0,3108.5,2.5667452]
[1720609661929,0.5523416,3109.9,3108.5,2.5667452]
[1720609662133,0.61609273,3109.9,3108.5,3.06310615]
[1720609664173,0.06375113,3109.9,3108.5,3.06310615]
[1720609664370,0.61600391,3109.9,3108.5,3.06310615]
[1720609664969,0.61600391,3109.9,3108.6,2.41323013]
[1720609665288,0.06375113,3109.9,3108.6,2.41323013]
[1720609665453,0.06375113,3109.9,3108.8,2.3489]
[1720609665777,0.06375113,3109.9,3109.0,2.3489]
[1720609665976,0.06375113,3109.9,3108.7,2.96207774]
[1720609665977,0.06375113,3109.9,3109.2,2.3489]
[1720609666442,0.55200236,3110.3,3109.3,2.53461863]
[1720609667355,3.0,3110.4,3109.3,2.53461863]
[1720609667676,1.59805666,3110.3,3109.3,2.53461863]
[1720609667897,0.55205685,3110.2,3109.3,2.53461863]
[1720609670846,0.55205947,3110.1,3109.3,2.53461863]
[1720609671042,0.55207345,3110.0,3109.3,2.53461863]
[1720609671290,1.046,3110.3,3109.3,2.53461863]
[1720609671485,0.97294029,3110.2,3109.3,2.53461863]
[1720609672821,0.97294029,3110.2,3109.4,2.3591]
[1720609672974,0.55209723,3110.2,3109.4,2.3591]
[1720609674368,3.0,3110.4,3109.5,0.06431395]
[1720609674571,3.0,3110.4,3109.6,0.08902888]
[1720609674817,3.0,3110.4,3109.7,2.3765]
[1720609675123,0.76197866,3110.8,3109.8,0.08902888]
[1720609675450,0.55188877,3110.7,3109.7,2.3765]
[1720609675714,0.55188877,3110.7,3109.8,0.08902888]
[1720609676011,0.55188877,3110.7,3109.7,2.3765]
[1720609676317,0.55188877,3110.7,3109.8,0.08902888]
[1720609676521,0.6862926,3110.6,3109.9,2.3765]
[1720609676674,0.50445987,3110.6,3110.1,2.3765]
[1720609677112,0.50445987,3110.6,3110.2,0.08876779]
[1720609677827,0.50445987,3110.6,3110.2,0.15306559]
[1720609678005,0.50445987,3110.6,3110.3,2.3152]
[1720609678186,0.50445987,3110.6,3110.5,2.3152]
[1720609678381,0.50445987,3110.6,3110.5,2.40396779]
[1720609678885,7.46,3111.6,3110.5,2.40396779]
[1720609679088,0.50433954,3111.3,3110.6,0.06428665]
[1720609679289,0.50433954,3111.3,3110.6,2.3152]
[1720609679479,0.50433954,3111.3,3110.7,2.64420418]
[1720609680523,7.46,3112.2,3110.8,2.37948014]
[1720609680732,3.34782739,3113.0,3110.8,2.37948014]
[1720609680733,7.46,3112.8,3111.2,2.3152]
[1720609680940,2.46,3113.0,3111.3,2.37946447]
[1720609680941,0.55096893,3112.7,3111.3,2.37946447]
[1720609681138,0.3226,3113.0,3111.5,2.3152]
[1720609681302,0.48041425,3113.0,3111.6,0.06426446]
[1720609681485,0.48041425,3113.0,3111.5,2.3152]
[1720609682337,0.48041425,3113.0,3111.6,0.06426444]
[1720609682488,0.48041425,3113.0,3111.6,0.26174109]
[1720609683421,0.48041425,3113.0,3111.7,0.06426442]
[1720609683627,0.48041425,3113.0,3111.8,0.088352]
[1720609683794,0.48041425,3113.0,3111.7,0.06426442]
[1720609683795,0.15781425,3113.0,3111.9,2.3152]
[1720609683987,3.0,3113.3,3111.9,2.3152]
[1720609684342,1.5502,3113.2,3112.0,0.06425924]
[1720609684794,1.5502,3113.2,3112.1,0.0881239]
[1720609685002,1.5502,3113.2,3111.9,2.3152]
[1720609685201,4.20230413,3113.2,3111.9,2.3152]
[1720609685407,3.0,3113.1,3111.9,2.3152]
[1720609685635,0.72023041,3113.0,3111.9,2.3152]
[1720609688425,1.62030413,3113.2,3111.9,2.3152]
[1720609688589,0.07010413,3113.2,3112.0,0.08749084]
[1720609690102,0.07010413,3113.2,3112.1,2.2933]
[1720609690431,0.07010413,3113.2,3112.2,0.0874284]
[1720609691019,0.07010413,3113.2,3112.3,2.4108]
[1720609691217,0.82311454,3113.2,3112.3,2.4108]
[1720609691416,0.82311454,3113.2,3112.4,0.08737954]
[1720609691618,0.82311454,3113.2,3112.3,2.4108]
[1720609694442,0.07010413,3113.2,3112.3,2.4108]
[1720609697082,2.582,3112.8,3111.3,4.75136432]
[1720609697235,2.582,3112.4,3111.3,4.75136432]
[1720609697438,2.582,3112.0,3111.4,0.08146069]
[1720609697633,3.0,3111.9,3111.4,0.08146069]
[1720609697874,3.0,3111.9,3110.9,2.3545]
[1720609698473,3.0,3111.9,3111.0,0.07876771]
[1720609702288,3.3226,3112.3,3111.1,0.06427702]
[1720609702443,0.3226,3112.3,3111.2,2.3665]
[1720609702645,2.7381177,3112.8,3111.3,0.14322877]
[1720609702893,2.582,3112.8,3111.3,0.07895988]
[1720609703047,0.2582,3112.7,3111.4,0.24454599]
[1720609703246,0.2582,3112.7,3111.5,0.07895176]
[1720609703949,3.2582,3112.7,3111.5,0.07895176]
[1720609704260,3.2582,3112.7,3111.6,2.32566716]
[1720609704261,0.2582,3112.7,3111.6,2.32566716]
[1720609704460,0.3226,3113.1,3111.7,0.3114075]
[1720609704774,0.3226,3113.1,3111.6,2.2614]
[1720609704775,0.48279065,3113.1,3111.6,2.2614]
[1720609704946,2.582,3112.8,3111.6,2.2614]
[1720609705145,2.582,3112.8,3111.7,0.07884078]
[1720609705600,3.0,3112.7,3111.7,0.07884078]
[1720609706580,3.0,3112.7,3111.6,2.2614]
[1720609706747,0.5582,3112.6,3111.6,2.2614]
[1720609707170,0.5582,3112.6,3111.7,0.07884078]
[1720609711588,3.0,3112.7,3111.7,0.07884078]
[1720609711951,3.0,3112.7,3111.6,2.2614]
[1720609712480,3.0,3112.7,3109.8,12.82203321]
[1720609712481,2.582,3112.4,3111.2,2.3918]
[1720609712653,3.0,3112.3,3111.2,2.3918]
[1720609712853,0.5582,3112.2,3111.3,0.07907071]
[1720609713684,0.5582,3112.2,3111.2,2.3918]
[1720609719206,0.55,3112.6,3111.2,2.3918]
[1720609719355,3.55,3112.6,3111.3,0.07387954]
[1720609719559,3.55,3112.6,3111.2,2.3918]
[1720609720056,3.0,3112.6,3111.4,2.3841]
[1720609720253,0.16015975,3112.6,3111.5,0.31871689]
[1720609720502,2.582,3112.6,3111.5,0.07387954]
[1720609720680,3.0,3112.5,3111.5,0.07387954]
[1720609720884,0.06982721,3112.4,3111.5,0.07387954]
[1720609721458,0.55,3112.3,3111.5,0.07387954]
[1720609722181,0.06982721,3112.4,3111.5,0.07387954]
[1720609722491,0.06982721,3112.4,3111.6,0.24579795]
[1720609724495,0.06982721,3112.4,3111.4,2.3841]
[1720609724657,0.06982721,3112.4,3111.7,0.07393908]
[1720609725171,0.06982721,3112.4,3111.4,2.3841]
[1720609725556,0.06982721,3112.4,3111.5,0.07393908]
[1720609727358,2.65182721,3112.4,3111.5,0.07393908]
[1720609727562,2.65182721,3112.4,3111.4,2.3841]
[1720609727563,3.0,3112.3,3111.4,2.3841]
[1720609727760,0.56518272,3112.2,3111.4,2.3841]
[1720609729515,2.582,3112.0,3110.7,2.4371]
[1720609729810,2.582,3111.6,3110.4,2.39686432]
[1720609730022,0.8095846,3111.5,3110.8,0.07147444]
[1720609730174,2.582,3111.2,3110.8,0.07147444]
[1720609730368,2.582,3111.2,3110.0,2.4371]
[1720609730701,3.0,3111.1,3110.1,0.07147444]
[1720609730875,0.5582,3111.0,3110.1,0.07147444]
[1720609731285,3.0,3111.1,3110.1,0.13577286]
[1720609731493,3.0,3111.1,3110.1,0.07147444]
[1720609731829,3.2582,3111.5,3110.1,0.13576955]
[1720609732026,0.55171399,3111.4,3110.1,0.13576955]
[1720609732231,3.2582,3111.5,3110.2,2.3871]
[1720609732528,0.58402,3111.4,3110.3,0.30943261]
[1720609733037,0.58402,3111.4,3110.4,0.07147444]
[1720609733211,0.58402,3111.4,3110.5,0.06428872]
[1720609733531,3.3226,3111.9,3110.5,0.06428872]
[1720609733698,1.4937775,3111.8,3110.5,0.06428872]
[1720609734028,0.55162425,3111.7,3110.5,0.06428872]
[1720609734343,0.6211775,3111.7,3110.5,0.06428872]
[1720609734550,0.6211775,3111.7,3110.4,0.06429144]
[1720609734551,0.06955325,3111.7,3110.4,0.06429144]
[1720609734835,0.06955325,3111.7,3110.3,0.24513951]
[1720609735141,2.582,3111.6,3110.2,2.3871]
[1720609735301,3.55155913,3111.5,3110.4,0.07147444]
[1720609735501,3.0,3111.5,3110.2,2.3871]
[1720609735902,3.0,3111.5,3110.3,0.07171811]
[1720609736340,3.0,3111.5,3110.2,2.3871]
[1720609736641,0.5582,3111.4,3110.4,0.07171811]
[1720609736800,0.5582,3111.4,3110.2,2.3871]
[1720609737132,0.5582,3111.4,3110.3,0.07171811]
[1720609737335,0.5582,3111.4,3110.2,2.3871]
[1720609737694,0.5582,3111.4,3110.3,0.07171811]
[1720609737902,0.35582,3111.3,3110.3,0.06429349]
[1720609738100,3.0,3111.5,3110.4,2.4586]
[1720609738325,0.06955325,3111.7,3110.5,0.07171811]
[1720609738852,2.582,3111.6,3110.5,0.07171811]
[1720609739033,3.55161287,3111.5,3110.5,0.07171811]
[1720609739212,3.0,3111.5,3110.5,0.07171811]
[1720609739429,0.5582,3111.4,3110.4,2.4586]
[1720609739655,3.0,3111.5,3110.7,2.3464]
[1720609739851,0.06955325,3111.7,3110.7,2.3464]
[1720609740221,0.06955325,3111.7,3110.8,0.13599939]
[1720609740422,0.06955325,3111.7,3110.9,2.3464]
[1720609740717,0.06955325,3111.7,3111.0,0.06428015]
[1720609740952,0.06955325,3111.7,3111.1,0.24106802]
[1720609741347,0.06955325,3111.7,3111.2,0.06427799]
[1720609741523,0.06955325,3111.7,3111.2,0.07171811]
[1720609742926,3.0,3112.3,3111.3,2.3464]
[1720609743756,3.0,3112.5,3111.3,2.3464]
[1720609743957,1.59720685,3112.4,3111.3,2.3464]
[1720609744257,0.55120685,3112.3,3111.3,2.3464]
[1720609744457,3.47985975,3112.7,3111.3,2.3464]
[1720609744655,0.55118133,3112.6,3111.3,2.3464]
[1720609744856,2.582,3112.4,3111.3,2.3464]
[1720609745019,3.55118133,3112.3,3111.3,2.3464]
[1720609745354,1.16449946,3112.2,3111.3,2.3464]
[1720609745657,0.61331813,3112.2,3111.3,2.3464]
[1720609745835,0.5513517,3112.1,3111.3,2.3464]
[1720609746241,3.132,3112.0,3110.9,2.2847]
[1720609746556,3.0,3111.9,3110.9,2.2847]
[1720609746751,0.5582,3111.8,3110.9,2.2847]
[1720609747275,0.5582,3111.8,3111.0,0.07149612]
[1720609750630,0.5582,3111.8,3110.9,2.2847]
[1720609750829,0.5582,3111.8,3111.1,0.07149612]
[1720609751065,0.5582,3111.8,3110.9,2.2847]
[1720609751267,0.35582,3111.7,3110.9,2.2847]
[1720609751627,0.35582,3111.7,3111.0,0.07149612]
[1720609753550,0.90724574,3111.7,3111.0,0.07149612]
[1720609753760,0.35582,3111.7,3111.0,0.07149612]
[1720609753977,0.90725686,3111.7,3111.0,0.07149612]
[1720609754131,0.35582,3111.7,3111.0,0.07149612]
[1720609754560,0.90726072,3111.7,3111.0,0.07149612]
[1720609756771,0.35582,3111.7,3111.0,0.07149612]
[1720609757136,0.90726279,3111.7,3111.0,0.07149612]
[1720609757539,0.55144489,3111.6,3111.0,0.07149612]
[1720609757837,0.35582,3111.7,3111.0,0.07149612]
[1720609758078,0.50427828,3111.5,3111.0,0.07149612]
[1720609761143,0.50427828,3111.5,3110.5,2.2889]
[1720609761370,0.60862783,3111.4,3111.1,0.07162605]
[1720609761553,0.60862783,3111.4,3110.5,2.2889]
[1720609761754,0.60862783,3111.4,3111.2,0.07162605]
[1720609761961,0.60862783,3111.4,3110.5,2.2889]
[1720609763583,0.60862783,3111.4,3110.6,0.07162605]
[1720609764998,0.50427828,3111.5,3110.6,0.30767865]
[1720609765210,0.50427828,3111.5,3110.7,2.4997]
[1720609765694,0.50427828,3111.5,3110.8,0.07162605]
[1720609766050,0.50427828,3111.5,3110.7,2.4997]
[1720609769794,0.50427828,3111.5,3110.8,0.06428297]
[1720609769979,0.50427828,3111.5,3110.9,0.2563983]
[1720609770910,0.50427828,3111.5,3110.7,2.4997]
[1720609771466,2.4222,3111.4,3110.0,2.4905]
[1720609771668,5.4222,3111.4,3110.0,2.4905]
[1720609771887,5.4222,3111.4,3110.1,0.07169103]
[1720609772097,5.4222,3111.4,3110.0,2.4905]
[1720609772301,5.4222,3111.4,3109.2,0.06429556]
[1720609772302,2.4002,3111.1,3109.3,2.2519]
[1720609772473,5.4002,3111.1,3109.3,2.31619991]
[1720609772678,5.4002,3111.1,3109.4,0.07169103]
[1720609773867,5.4002,3111.1,3109.5,2.2887]
[1720609774419,5.4002,3111.1,3109.6,0.07169103]
[1720609774565,0.79822,3111.0,3109.7,0.2360391]
[1720609774907,3.79822,3111.0,3109.7,0.2360391]
[1720609775111,3.79822,3111.0,3109.8,0.07169103]
[1720609775466,3.79822,3111.0,3109.7,0.2360391]
[1720609775663,3.79822,3111.0,3109.8,0.06429992]
[1720609775868,3.0,3111.0,3109.9,2.2887]
[1720609776082,0.59264783,3111.3,3109.9,2.2887]
[1720609776083,0.59264783,3111.3,3110.0,0.06429106]
[1720609776413,3.0,3111.4,3110.1,2.2887]
[1720609776782,3.0,3111.4,3110.2,0.07182914]
[1720609777706,3.16049891,3111.4,3110.2,0.07182914]
[1720609777906,0.60039772,3111.3,3110.3,0.23605291]
[1720609779310,3.16049891,3111.4,3110.3,0.30034393]
[1720609779515,3.16049891,3111.4,3110.3,0.23605291]
[1720609780275,3.16049891,3111.4,3110.3,0.30034399]
[1720609781081,3.16049891,3111.4,3110.3,0.30034396]
[1720609781992,3.16049891,3111.4,3110.3,0.23605291]
[1720609782320,0.60039772,3111.3,3110.3,0.23605291]
[1720609782813,0.60039772,3111.3,3110.4,0.07176685]
[1720609788415,0.60039772,3111.3,3110.1,2.2887]
[1720609788618,0.60039772,3111.3,3110.5,0.07184808]
[1720609788840,0.60039772,3111.3,3110.1,2.2887]
[1720609789139,0.60039772,3111.3,3110.6,0.07184808]
[1720609789339,0.60039772,3111.3,3110.1,2.2887]
[1720609789797,0.60039772,3111.3,3110.2,0.07185621]
[1720609801451,0.60039772,3111.3,3110.1,2.2887]
[1720609802610,3.0,3111.4,3110.2,2.40853101]
[1720609802841,3.0,3111.4,3110.4,2.2723]
[1720609803044,0.50427828,3111.5,3110.4,2.2723]
[1720609803252,3.0,3111.3,3110.4,2.2723]
[1720609803462,0.50427828,3111.5,3110.5,2.34423742]
[1720609803760,0.50427828,3111.5,3110.6,2.63322374]
[1720609804754,0.50427828,3111.5,3110.8,2.4463]
[1720609815811,2.96957828,3111.5,3109.8,2.3988]
[1720609816158,3.0,3111.4,3109.8,2.3988]
[1720609816388,0.59695783,3111.3,3110.0,2.3443]
[1720609816792,0.59695783,3111.3,3110.1,0.07174787]
[1720609817360,0.59695783,3111.3,3110.2,2.3443]
[1720609817560,0.50427828,3111.5,3110.3,0.07177224]
[1720609817793,0.50427828,3111.5,3110.4,2.3443]
[1720609818106,1.05582817,3111.5,3110.4,2.3443]
[1720609818514,0.55154876,3111.4,3110.4,2.3443]
[1720609818695,0.55154876,3111.3,3110.5,0.06429084]
[1720609819010,0.50427828,3111.5,3110.6,2.4691]
[1720609819317,0.50427828,3111.5,3110.8,2.336]
[1720609820815,0.55143313,3111.9,3110.8,2.40027942]
[1720609821175,0.55143313,3111.8,3111.0,2.4263]
[1720609821375,0.55117795,3111.7,3111.1,2.49057258]
[1720609821618,0.50423977,3111.9,3111.2,0.07170996]
[1720609821782,0.50423977,3111.9,3111.3,0.32050131]
[1720609822614,0.50423977,3111.9,3111.3,0.25622825]
[1720609822814,0.50423977,3111.9,3111.1,2.4263]
[1720609822984,0.50423977,3111.9,3111.4,0.0716477]
[1720609823307,0.50423977,3111.9,3111.2,0.06427411]
[1720609823687,0.50423977,3111.9,3111.3,0.0716477]
[1720609823888,0.50423977,3111.9,3111.1,2.4263]
[1720609824100,0.50423977,3111.9,3111.4,0.0716098]
[1720609824290,0.50423977,3111.9,3111.3,0.06427404]
[1720609824683,0.50423977,3111.9,3111.4,2.347]
[1720609824915,0.01448061,3112.6,3111.6,2.347]
[1720609825215,0.51863326,3112.6,3111.6,2.347]
[1720609825427,0.51863326,3112.6,3111.7,0.0716098]
[1720609826526,2.86623326,3112.6,3111.7,0.0716098]
[1720609826835,2.86623326,3112.6,3111.6,2.347]